Workbook

Sheet CF (hidden)
B2: CONDITIONAL FORMATTING MAP
F3: =INDEX(dms_CF_3.6.1, MATCH(dms_TradingName,dms_CF_TradingName))="Y" | G3: =INDEX(dms_CF_3.6.5, MATCH(dms_TradingName,dms_CF_TradingName))="Y" | H3: =INDEX(dms_CF_3.6.6, MATCH(dms_TradingName,dms_CF_TradingName))="Y" -> FALSE | I3: =INDEX(dms_CF_3.6.7.1, MATCH(dms_TradingName,dms_CF_TradingName))="Y" | J3: =INDEX(dms_CF_3.6.7.2, MATCH(dms_TradingName,dms_CF_TradingName))="Y" | K3: =INDEX(dms_CF_3.6.7.3, MATCH(dms_TradingName,dms_CF_TradingName))="Y" | L3: =INDEX(dms_CF_3.6.7.4, MATCH(dms_TradingName,dms_CF_TradingName))="Y" | M3: =INDEX(dms_CF_3.6.8, MATCH(dms_TradingName,dms_CF_TradingName))="Y" | N3: =INDEX(dms_CF_4.1, MATCH(dms_TradingName,dms_CF_TradingName))="Y" | O3: =INDEX(dms_CF_6.6.1, MATCH(dms_TradingName,dms_CF_TradingName))="Y" | P3: =INDEX(dms_CF_6.8, MATCH(dms_TradingName,dms_CF_TradingName))="Y" | Q3: =INDEX(dms_CF_7.12, MATCH(dms_TradingName,dms_CF_TradingName))="Y" | R3: =INDEX(dms_CF_8.1_A, MATCH(dms_TradingName,dms_CF_TradingName))="Y" | S3: =INDEX(dms_CF_8.1_B, MATCH(dms_TradingName,dms_CF_TradingName))="Y" | T3: =INDEX(dms_CF_8.1_Neg, MATCH(dms_TradingName,dms_CF_TradingName))="Y" | U3: =INDEX(dms_CF_4.4.1_Neg, MATCH(dms_TradingName,dms_CF_TradingName))="Y"
B4: dms_CF_TradingName | C4: JurisdictionList | D4: Sector | E4: Segment | F4: dms_CF_3.6.1 | G4: dms_CF_3.6.5 | H4: dms_CF_3.6.6 | I4: dms_CF_3.6.7.1 | J4: dms_CF_3.6.7.2 | K4: dms_CF_3.6.7.3 | L4: dms_CF_3.6.7.4 | M4: dms_CF_3.6.8 | N4: dms_CF_4.1 | O4: dms_CF_6.6.1 | P4: dms_CF_6.8 | Q4: dms_CF_7.12 | R4: dms_CF_8.1_A | S4: dms_CF_8.1_B | T4: dms_CF_8.1_Neg | U4: dms_CF_4.4.1 | V4: dms_CF_MAIFI_flag
B5: ActewAGL Distribution | C5: ACT | D5: Electricity | E5: Distribution | G5: Y | I5: Y | J5: Y | K5: N | L5: Y | M5: N | N5: Y | O5: N | P5: Y | Q5: Y | R5: N | S5: Y | T5: Y | U5: N | V5: N
B6: Ausgrid | C6: NSW | D6: Electricity | E6: Distribution | G6: Y | I6: N | J6: N | K6: N | L6: Y | M6: N | N6: Y | O6: N | P6: Y | Q6: Y | R6: N | S6: Y | T6: Y | U6: N | V6: N
B7: AusNet (D) | C7: Vic | D7: Electricity | E7: Distribution | G7: N | I7: N | J7: N | K7: N | L7: N | M7: N | N7: Y | O7: N | P7: Y | Q7: N | R7: N | S7: N | T7: Y | U7: N | V7: N
B8: AusNet (T) | C8: Vic | D8: Electricity | E8: Transmission | G8: N | I8: N | J8: N | K8: N | L8: N | M8: N | N8: Y | O8: N | P8: Y | Q8: N | R8: N | S8: N | T8: Y | U8: N | V8: N
B9: CitiPower | C9: Vic | D9: Electricity | E9: Distribution | G9: N | I9: N | J9: N | K9: N | L9: N | M9: N | N9: Y | O9: N | P9: Y | Q9: N | R9: N | S9: N | T9: Y | U9: N | V9: N
B10: Directlink | C10: Qld | D10: Electricity | E10: Transmission | G10: N | I10: N | J10: N | K10: N | L10: N | M10: N | N10: Y | O10: N | P10: Y | Q10: N | R10: N | S10: Y | T10: Y | U10: N | V10: N
B11: ElectraNet | C11: SA | D11: Electricity | E11: Transmission | G11: N | I11: N | J11: N | K11: N | L11: N | M11: N | N11: Y | O11: N | P11: Y | Q11: N | R11: N | S11: Y | T11: Y | U11: N | V11: N
B12: Endeavour Energy | C12: NSW | D12: Electricity | E12: Distribution | G12: Y | I12: N | J12: N | K12: N | L12: Y | M12: N | N12: Y | O12: N | P12: Y | Q12: Y | R12: N | S12: Y | T12: Y | U12: Y | V12: N
B13: Energex | C13: Qld | D13: Electricity | E13: Distribution | G13: Y | I13: N | J13: N | K13: N | L13: N | M13: N | N13: Y | O13: N | P13: Y | Q13: Y | R13: N | S13: Y | T13: Y | U13: Y | V13: N
B14: Ergon Energy | C14: Qld | D14: Electricity | E14: Distribution | G14: Y | I14: N | J14: N | K14: N | L14: N | M14: N | N14: Y | O14: N | P14: Y | Q14: Y | R14: N | S14: Y | T14: Y | U14: N | V14: N
B15: Essential Energy | C15: NSW | D15: Electricity | E15: Distribution | G15: Y | I15: N | J15: N | K15: N | L15: Y | M15: N | N15: Y | O15: N | P15: Y | Q15: Y | R15: N | S15: Y | T15: Y | U15: N | V15: N
B16: Jemena Electricity | C16: Vic | D16: Electricity | E16: Distribution | G16: N | I16: N | J16: N | K16: N | L16: N | M16: N | N16: Y | O16: N | P16: Y | Q16: N | R16: N | S16: N | T16: Y | U16: N | V16: N
B17: Murraylink | C17: SA | D17: Electricity | E17: Transmission | G17: N | I17: N | J17: N | K17: N | L17: N | M17: N | N17: Y | O17: N | P17: Y | Q17: N | R17: N | S17: Y | T17: Y | U17: N | V17: N
B18: Power and Water | C18: NT | D18: Electricity | E18: Distribution | G18: N | I18: N | J18: Y | K18: N | L18: N | M18: Y | N18: Y | O18: Y | P18: Y | Q18: Y | R18: Y | S18: Y | T18: Y | U18: N | V18: N
B19: Powercor Australia | C19: Vic | D19: Electricity | E19: Distribution | G19: N | I19: N | J19: N | K19: N | L19: N | M19: N | N19: Y | O19: N | P19: Y | Q19: N | R19: N | S19: N | T19: Y | U19: N | V19: N
B20: Powerlink | C20: Qld | D20: Electricity | E20: Transmission | G20: N | I20: N | J20: N | K20: N | L20: N | M20: N | N20: Y | O20: N | P20: Y | Q20: N | R20: N | S20: Y | T20: Y | U20: N | V20: N
B21: SA Power Networks | C21: SA | D21: Electricity | E21: Distribution | G21: Y | I21: N | J21: N | K21: N | L21: N | M21: N | N21: Y | O21: N | P21: Y | Q21: Y | R21: Y | S21: Y | T21: N | U21: N | V21: N
B22: TasNetworks (D) | C22: Tas | D22: Electricity | E22: Distribution | G22: Y | I22: N | J22: N | K22: N | L22: N | M22: N | N22: Y | O22: N | P22: Y | Q22: Y | R22: N | S22: Y | T22: Y | U22: N | V22: N
B23: TasNetworks (T) | C23: Tas | D23: Electricity | E23: Transmission | G23: N | I23: N | J23: N | K23: N | L23: N | M23: N | N23: Y | O23: N | P23: Y | Q23: N | R23: N | S23: Y | T23: Y | U23: N | V23: N
B24: TransGrid | C24: NSW | D24: Electricity | E24: Transmission | G24: N | I24: N | J24: N | K24: N | L24: N | M24: N | N24: Y | O24: N | P24: Y | Q24: N | R24: N | S24: Y | T24: Y | U24: N | V24: N
B25: United Energy | C25: Vic | D25: Electricity | E25: Distribution | G25: N | I25: N | J25: N | K25: N | L25: N | M25: N | N25: Y | O25: N | P25: Y | Q25: N | R25: N | S25: N | T25: Y | U25: N | V25: N
B31: Worksheet 6.2 STPIS reliability
B32: Formula | F32: Applied to:
B34: =INDEX(dms_CBD_flag,MATCH(dms_TradingName,dms_TradingName_List))="NO" | F34: $D$11,$D$17,$D$23,$D$33,$D$39,$D$45,$D$55,$D$61,$D$67,$D$77,$D$83,$D$89
B35: =INDEX(dms_Urban_flag,MATCH(dms_TradingName,dms_TradingName_List))="NO" | F35: $D$12,$D$18,$D$24,$D$56,$D$62,$D$78,$D$68,$D$84
B36: =INDEX(dms_ShortRural_flag,MATCH(dms_TradingName,dms_TradingName_List))="NO" | F36: $D$13,$D$19,$D$25,$D$57,$D$63,$D$69,$D$79,$D$85
B37: =INDEX(dms_LongRural_flag,MATCH(dms_TradingName,dms_TradingName_List))="NO" | F37: $D$14,$D$20,$D$26,$D$58,$D$64,$D$65,$D$70,$D$71,$D$80,$D$86
B38: =INDEX(dms_FeederType_5_flag,MATCH(dms_TradingName,dms_TradingName_List))="NO" | F38: $D$87,$D$81,$D$71,$D$65,$D$59,$D$49,$D$43,$D$37,$D$21,$D$15
B39: =dms_MAIFI_Flag="No" | F39: $D$55:$D$72
C124: =IFERROR(IF(dms_060801_StartCell<>"",IF(dms_Model="ARR",(LOOKUP(2,1/(dms_060801_01_Values<>""),(ROW(dms_060801_01_Values)))),"not an ARR"),0),"0") -> 0
C125: =IFERROR(IF(dms_Model="ARR",(MAX(0,dms_0608_LastRow-dms_0608_OffsetRows)),"not an ARR"),"0") -> 0

Sheet AER only (hidden)
B1: Data in these columns used for data validation and database purposes.
B2: Date last modified: | C2: 2017-01-16 | D2: added (Albury and Victora) for AGN
C3: 2016-10-17 | D3: updated TransGrid's correct legal name, corrected TasNetworks (T) to June financial year
C4: 2017-02-01 | D4: inserted Power and Water, added NRs (dms_FeederCat_1 and dms_FeederCat_2)
C5: 2017-03-03 | D5: inserted AEMO as a business | AB5: FOR ELECTRICITY BUSINESSES ONLY
C6: 2018-03-28 | D6: major changes to accommodate STPIS
C7: Template Version | D7: 5 | AB7: Feeder Types | AF7: TasNetworks (D) | AG7: MAIFI flag | AH7: Feeder Names | AN7: =INDEX(dms_Public_Lighting_List, MATCH(dms_TradingName,dms_TradingName_List))="NO"
AB9: CBD | AC9: Urban | AD9: Short rural | AE9: long rural | AF9: EXTRA
B10: dms_TradingName_List | C10: dms_TradingNameFull_List | D10: dms_ABN_List | E10: dms_JurisdictionList | F10: dms_Sector_List | G10: dms_Segment_List | H10: dms_FormControl_List | I10: dms_RPT_List | J10: dms_RPTMonth_List | K10: dms_CRCPlength_List | L10: dms_FRCPlength_List | M10: dms_663_List | N10: dms_DeterminationRef_List | O10: dms_Addr1_List | P10: dms_Addr2_List | Q10: dms_Suburb_List | R10: dms_State_List | S10: dms_PostCode_List | T10: dms_PAddr1_List | U10: dms_PAddr2_List | V10: dms_PSuburb_List | W10: dms_PState_List | X10: dms_PPostCode_List | Y10: dms_ContactName1_List | Z10: dms_ContactPh1_List | AA10: dms_ContactEmail_List | AB10: dms_CBD_flag | AC10: dms_Urban_flag | AD10: dms_ShortRural_flag | AE10: dms_LongRural_flag | AF10: dms_FeederType_5_flag | AG10: dms_MAIFI_flag_List | AH10: dms_FeederName_1 | AI10: dms_FeederName_2 | AJ10: dms_FeederName_3 | AK10: dms_FeederName_4 | AL10: dms_FeederName_5 | AM10: dms_Public_Lighting_List | AN10: Column1
B11: Ausgrid | C11: Ausgrid | D11: 78508211731 | E11: NSW | F11: Electricity | G11: Distribution | H11: Revenue cap | I11: Financial | J11: June | K11: 5 | L11: 5 | M11: 5 | N11: 2014-19 Distribution Determination | O11: 24-28 Campbell Street | Q11: SYDNEY | R11: NSW | S11: 2000 | T11: GPO Box 4009 | V11: SYDNEY | W11: NSW | X11: 2001 | Y11: John Thomson | Z11: 02 9269 2312 | AA11: john.thomson@ausgrid.com.au | AB11: YES | AC11: YES | AD11: YES | AE11: YES | AF11: NO | AG11: NO | AH11: CBD | AI11: Urban | AJ11: Short rural | AK11: Long rural | AM11: YES | AN11: Ausgrid
B12: Ausgrid (Tx Assets) | C12: Ausgrid (Tx Assets) | D12: 67505337385 | E12: NSW | F12: Electricity | G12: Distribution | H12: Revenue cap | I12: Financial | J12: June | K12: 5 | L12: 5 | M12: 5 | N12: distribution determination | O12: 24-28 Campbell Street | Q12: SYDNEY | R12: NSW | S12: 2000 | T12: GPO Box 4009 | V12: SYDNEY | W12: NSW | X12: 2001 | Y12: John Thomson | Z12: 02 9269 2312 | AA12: john.thomson@ausgrid.com.au | AB12: YES | AC12: YES | AD12: YES | AE12: YES | AF12: NO | AG12: NO | AH12: CBD | AI12: Urban | AJ12: Short rural | AK12: Long rural | AM12: YES | AN12: Ausgrid (Tx Assets)
B13: AusNet (D) | C13: AusNet Electricity Services Pty Ltd | D13: 91064651118 | E13: Vic | F13: Electricity | G13: Distribution | H13: Revenue cap | I13: Financial | J13: June | K13: 5 | L13: 5 | M13: 2 | N13: 2016-20 Distribution Determination | O13: Level 32 | P13: 2 Southbank Boulevard | Q13: SOUTHBANK | R13: Vic | S13: 3006 | T13: Locked Bag 14051 | V13: MELBOURNE CITY MAIL CENTRE | W13: Vic | X13: 8001 | Y13: Thomas Hall | AA13: thomas. hall@ausnetservices.com.au | AB13: NO | AC13: YES | AD13: YES | AE13: YES | AF13: NO | AG13: YES | AH13: CBD | AI13: Urban | AJ13: Short rural | AK13: Long rural | AM13: YES | AN13: AusNet (D)
B14: Australian Distribution Co. | C14: Australian Distribution Co. | D14: 11222333444 | E14: - | F14: Electricity | G14: Distribution | H14: Revenue cap | I14: Financial | J14: June | K14: 5 | L14: 5 | M14: 2 | N14: distribution determination | O14: 123 Straight Street | Q14: SYDNEY | R14: NSW | S14: 2000 | T14: PO Box 123 | V14: SYDNEY | W14: NSW | X14: 2000 | Y14: Bob Smith | Z14: 02 1234 5678 | AA14: bob@auselec.net.au | AB14: YES | AC14: YES | AD14: YES | AE14: YES | AF14: NO | AG14: NO | AH14: CBD | AI14: Urban | AJ14: Short rural | AK14: Long rural | AM14: YES | AN14: Australian Distribution Co.
B15: CitiPower | C15: CitiPower | D15: 76064651056 | E15: Vic | F15: Electricity | G15: Distribution | H15: Revenue cap | I15: Financial | J15: June | K15: 5 | L15: 5 | M15: 2 | N15: 2016-20 Distribution Determination | O15: 40 Market Street | Q15: MELBOURNE | R15: Vic | S15: 3000 | T15: Locked Bag 14090 | V15: MELBOURNE | W15: Vic | X15: 8001 | Y15: Hannah Williams | Z15: 03 9683 4088 | AA15: hwilliams@powercor.com.au | AB15: YES | AC15: YES | AD15: NO | AE15: NO | AF15: NO | AG15: YES | AH15: CBD | AI15: Urban | AJ15: Short rural | AK15: Long rural | AM15: YES | AN15: CitiPower
B16: Endeavour Energy | C16: Endeavour Energy | D16: 11247365823 | E16: NSW | F16: Electricity | G16: Distribution | H16: Revenue cap | I16: Financial | J16: June | K16: 5 | L16: 5 | M16: 5 | N16: 2014-19 Distribution Determination | O16: 51 Huntingwood Drive | Q16: HUNTINGWOOD | R16: NSW | S16: 2148 | T16: PO Box 811 | V16: SEVEN HILLS | W16: NSW | X16: 1730 | Y16: Jon Hocking | Z16: 02 9853 4386 / 0407 348 156 | AA16: Jon.Hocking@Endeavourenergy.com.au | AB16: YES | AC16: YES | AD16: YES | AE16: YES | AF16: NO | AG16: NO | AH16: CBD | AI16: Urban | AJ16: Short rural | AK16: Long rural | AM16: YES | AN16: Endeavour Energy
B17: Energex | C17: Energex | D17: 40078849055 | E17: Qld | F17: Electricity | G17: Distribution | H17: Revenue cap | I17: Financial | J17: June | K17: 5 | L17: 5 | M17: 5 | N17: 2015-20 Distribution Determination | O17: 26 Reddacliff Street | Q17: NEWSTEAD | R17: Qld | S17: 4006 | T17: 26 Reddacliff Street | V17: NEWSTEAD | W17: QLD | X17: 4006 | Y17: Jenny Doyle, Group Manager Regulatory Affairs | Z17: (07) 3851 6416 | AA17: jenny.doyle@ergon.com.au | AB17: YES | AC17: YES | AD17: YES | AE17: NO | AF17: NO | AG17: NO | AH17: CBD | AI17: Urban | AJ17: Short rural | AK17: Long rural | AM17: YES | AN17: Energex
B18: Ergon Energy | C18: Ergon Energy | D18: 50087646062 | E18: Qld | F18: Electricity | G18: Distribution | H18: Revenue cap | I18: Financial | J18: June | K18: 5 | L18: 5 | M18: 5 | N18: 2015-20 Distribution Determination | O18: 22 Walker Street | Q18: TOWNSVILLE | R18: Qld | S18: 4810 | T18: Po Box 264 | V18: FORTITUDE VALLEY | W18: QLD | X18: 4006 | Y18: Jenny Doyle, Group Manager Regulatory Affairs | Z18: (07) 3851 6416 | AA18: jenny.doyle@ergon.com.au | AB18: NO | AC18: YES | AD18: YES | AE18: YES | AF18: NO | AG18: NO | AH18: CBD | AI18: Urban | AJ18: Short rural | AK18: Long rural | AM18: YES | AN18: Ergon Energy
B19: Essential Energy | C19: Essential Energy | D19: 37428185226 | E19: NSW | F19: Electricity | G19: Distribution | H19: Revenue cap | I19: Financial | J19: June | K19: 5 | L19: 5 | M19: 5 | N19: 2014-19 Distribution Determination | O19: 8 Buller Street | Q19: PORT MACQUARIE | R19: NSW | S19: 2444 | T19: PO Box 5730 | V19: PORT MACQUARIE | W19: NSW | X19: 2444 | Y19: Catherine Waddell | Z19: 02 6338 3553 | AA19: catherine.waddell@essentialenergy.com.au | AB19: NO | AC19: YES | AD19: YES | AE19: YES | AF19: NO | AG19: NO | AH19: CBD | AI19: Urban | AJ19: Short rural | AK19: Long rural | AM19: YES | AN19: Essential Energy
B20: Evoenergy Distribution | C20: ActewAGL Distribution | D20: 76670568688 | E20: ACT | F20: Electricity | G20: Distribution | H20: Revenue cap | I20: Financial | J20: June | K20: 5 | L20: 5 | M20: 5 | N20: 2014-19 Distribution Determination | O20: 40 Bunda Street | Q20: CANBERRA | R20: ACT | S20: 2600 | T20: GPO BOX 366 | V20: CANBERRA | W20: ACT | X20: 2601 | Y20: Robert Walker | Z20: 02 6248 3847 | AA20: robert.walker@actewagle.com.au | AB20: NO | AC20: YES | AD20: YES | AE20: NO | AF20: NO | AG20: NO | AH20: CBD | AI20: Urban | AJ20: Short rural | AK20: Long rural | AM20: NO | AN20: Evoenergy Distribution
B21: Evoenergy Distribution (Tx Assets) | C21: ActewAGL Distribution (Tx Assets) | D21: 76670568688 | E21: ACT | F21: Electricity | G21: Distribution | H21: Revenue cap | I21: Financial | J21: June | K21: 5 | L21: 5 | M21: 5 | N21: distribution determination | O21: 40 Bunda Street | Q21: CANBERRA | R21: ACT | S21: 2600 | T21: GPO BOX 366 | V21: CANBERRA | W21: ACT | X21: 2601 | Y21: Robert Walker | Z21: 02 6248 3847 | AA21: robert.walker@actewagle.com.au | AB21: NO | AC21: YES | AD21: YES | AE21: NO | AF21: NO | AG21: NO | AH21: CBD | AI21: Urban | AJ21: Short rural | AK21: Long rural | AM21: NO | AN21: Evoenergy Distribution (Tx Assets)
B22: Jemena Electricity | C22: Jemena Electricity | D22: 82064651083 | E22: Vic | F22: Electricity | G22: Distribution | H22: Revenue cap | I22: Financial | J22: June | K22: 5 | L22: 5 | M22: 2 | N22: 2016-20 Distribution Determination | O22: Level 16 | P22: 567 Collins Street | Q22: MELBOURNE | R22: Vic | S22: 3000 | T22: PO Box 16182 | V22: MELBOURNE | W22: Vic | X22: 8001 | Y22: Matthew Serpell | Z22: 03 9173 8231 | AA22: matthew.serpell@jemena.com.au | AB22: NO | AC22: YES | AD22: YES | AE22: NO | AF22: NO | AG22: YES | AH22: CBD | AI22: Urban | AJ22: Short rural | AK22: Long rural | AM22: YES | AN22: Jemena Electricity
B23: Power and Water | C23: Power and Water Corporation | D23: 15947352360 | E23: NT | F23: Electricity | G23: Distribution | H23: Revenue cap | I23: Financial | J23: June | K23: 5 | L23: 5 | M23: x | N23: distribution determination | O23: GPO Box 1921 | Q23: DARWIN | R23: NT | S23: 801 | T23: GPO Box 1921 | V23: DARWIN | W23: NT | X23: 801 | Y23: Lucy Moon | Z23: 08 8924 5822 | AA23: Lucy.Moon@powerwater.com.au | AB23: YES | AC23: YES | AD23: YES | AE23: YES | AF23: NO | AG23: NO | AH23: CBD | AI23: Urban | AJ23: Short rural | AK23: Long rural | AM23: NO | AN23: Power and Water
B24: Powercor Australia | C24: Powercor Australia | D24: 89064651109 | E24: Vic | F24: Electricity | G24: Distribution | H24: Revenue cap | I24: Financial | J24: June | K24: 5 | L24: 5 | M24: 2 | N24: 2016-20 Distribution Determination | O24: 40 Market Street | Q24: MELBOURNE | R24: Vic | S24: 3000 | T24: Locked bag 14090 | V24: MELBOURNE | W24: Vic | X24: 8001 | Y24: Hannah Williams | Z24: 03 9683 4088 | AA24: hwilliams@powercor.com.au | AB24: NO | AC24: YES | AD24: YES | AE24: YES | AF24: NO | AG24: YES | AH24: CBD | AI24: Urban | AJ24: Short rural | AK24: Long rural | AM24: YES | AN24: Powercor Australia
B25: SA Power Networks | C25: SA Power Networks | D25: 13332330749 | E25: SA | F25: Electricity | G25: Distribution | H25: Revenue cap | I25: Financial | J25: June | K25: 5 | L25: 5 | M25: 5 | N25: 2015-20 Distribution Determination | O25: 1 Anzac Highway | Q25: KESWICK | R25: SA | S25: 5035 | T25: GPO Box 77 | V25: ADELAIDE | W25: SA | X25: 5000 | Y25: Richard Sibly | Z25: 08 8404 5613 | AA25: richard.sibly@sapowernetworks.com.au | AB25: YES | AC25: YES | AD25: YES | AE25: YES | AF25: NO | AG25: NO | AH25: CBD | AI25: Urban | AJ25: Short rural | AK25: Long rural | AM25: YES | AN25: SA Power Networks
B26: TasNetworks (D) | C26: TasNetworks (D) | D26: 24167357299 | E26: Tas | F26: Electricity | G26: Distribution | H26: Revenue cap | I26: Financial | J26: June | K26: 5 | L26: 5 | M26: 5 | N26: distribution determination | O26: 1-7 Maria Street | Q26: LENAH VALLEY | R26: Tas | S26: 7008 | T26: PO Box 606 | V26: MOONAH | W26: Tas | X26: 7009 | Y26: John Sayers | Z26: 03 6271 6469 | AA26: john.sayers@tasnetworks.com.au | AB26: YES | AC26: YES | AD26: YES | AE26: YES | AF26: YES | AG26: NO | AH26: Critical Infrastructure | AI26: High density commercial | AJ26: Urban | AK26: High density rural | AL26: Low density rural | AM26: YES | AN26: TasNetworks (D)
B27: United Energy | C27: United Energy | D27: 70064651029 | E27: Vic | F27: Electricity | G27: Distribution | H27: Revenue cap | I27: Financial | J27: June | K27: 5 | L27: 5 | M27: 2 | N27: 2016-20 Distribution Determination | O27: 43-45 Centreway | Q27: MOUNT WAVERLEY | R27: Vic | S27: 3149 | T27: PO Box 449 | V27: MOUNT WAVERLEY | W27: Vic | X27: 3170 | Y27: Mathew Abraham | Z27: 03 8846 9758 | AA27: mathew.abraham@ue.com.au | AB27: NO | AC27: YES | AD27: YES | AE27: NO | AF27: NO | AG27: YES | AH27: CBD | AI27: Urban | AJ27: Short rural | AK27: Long rural | AM27: YES | AN27: United Energy
Z30: For EB & Reset RINs only | AE30: For AARs only
B31: The Reg Year Ending (dms_RYE) must be set to the last year of the regulatory period. For forecast data is is usually (FRCP_y5) for actual it is a single year (CRY). For historical actual data the RYE will need to be set manually in the business details sheet by setting the dms_Multiyear_flag to 1 and putting the correct value in 'dms_Specified_FinalYear. See cells C67:C68 | N31: Drop down selector box for CA & Reset RINs. | O31: For CA & Reset RINs only | Z31: for DNSP only | AE31: For DNSPs only
B32: dms_Model_List | C32: dms_Worksheet_List | E32: dms_RYE_Formula_Result | N32: dms_0203_ProjectType | O32: dms_020303_01_UOM | P32: dms_020501_01_UOM | Q32: dms_020501_02_UOM | R32: dms_020501_03_UOM | S32: dms_020501_04_UOM | T32: dms_020603_01_UOM | U32: dms_020701_01_UOM | V32: dms_020701_02_UOM | W32: dms_020701_01_Rows | X32: dms_040102_01_UOM | Y32: dms_040102_04_UOM | Z32: dms_030601_01_UOM | AA32: dms_030601_02_UOM | AB32: dms_030701_01_UOM | AC32: dms_030702_01_UOM | AD32: dms_030703_01_UOM | AE32: dms_030605_UOM | AF32: dms_03060703_UOM
B33: ARR | C33: ANNUAL REPORTING | E33: =LEFT(dms_SingleYear_FinalYear_Result,2)&RIGHT(dms_SingleYear_FinalYear_Result,2) ->  | F33: =LEFT(dms_SingleYear_FinalYear_Result,2)&RIGHT(dms_SingleYear_FinalYear_Result,2) | H33: Formula errors are OK | N33: New line on new route - single circuit | O33: Circuit line length in km | P33: 0's | Q33: 0's | R33: 0's | S33: 0's | T33: 0's | U33: km | V33: km | W33: Route line length within zone | X33: 0's | Y33: days | Z33: minutes/customer | AA33: minutes/customer | AB33: Customer / km | AC33: % | AD33: km | AE33: number | AF33: number
B34: CA | C34: CATEGORY ANALYSIS | E34: =LEFT(dms_SingleYear_FinalYear_Result,2)&RIGHT(dms_SingleYear_FinalYear_Result,2) ->  | F34: =LEFT(dms_SingleYear_FinalYear_Result,2)&RIGHT(dms_SingleYear_FinalYear_Result,2) | H34: Formula errors are OK | N34: New line on new route - dual circuit | O34: Circuit line length in km | P34: 0's | Q34: 0's | R34: 0's | S34: 0's | T34: 0's | U34: 0's | V34: 0's | W34: Number of maintenance spans | X34: 0's | Y34: 0's | Z34: minutes/customer | AA34: minutes/customer | AB34: MWh/customer | AC34: Number of spans | AE34: number | AF34: number
B35: CESS | C35: CAPITLAL EXPENDITURE SHARING SCHEMING | E35: 2016 | F35: =LEFT(dms_SingleYear_FinalYear_Result,2)&RIGHT(dms_SingleYear_FinalYear_Result,2) | N35: New line on new route - other | O35: Circuit line length in km | P35: MVA added | Q35: MVA added | R35: MVA added | S35: MVA added | T35: 0's | U35: km | V35: km | W35: Total length of maintenance spans | X35: 0's | Y35: $0s | Z35: interruptions/customer | AA35: interruptions/customer | AB35: kVA / customer | AC35: Number of spans | AE35: number | AF35: number
B36: CPI | C36: CPI | N36: Line rebuild over existing route - single circuit | O36: Circuit line length in km | P36: 0's | Q36: 0's | R36: 0's | S36: 0's | T36: 0's | U36: km | V36: km | W36: Length of vegetation corridors | X36: $0s | Y36: 0's | Z36: interruptions/customer | AA36: interruptions/customer | AC36: Number of spans | AE36: number | AF36: number
B37: EB | C37: ECONOMIC BENCHMARKING | E37: =LEFT(dms_SingleYear_FinalYear_Result,2)&RIGHT(dms_SingleYear_FinalYear_Result,2) ->  | F37: =LEFT(dms_SingleYear_FinalYear_Result,2)&RIGHT(dms_SingleYear_FinalYear_Result,2) | H37: Formula errors are OK | N37: Line rebuild over existing route - dual circuit | O37: Number | P37: total spend $0s | Q37: total spend $0s | R37: total spend $0s | S37: total spend $0s | T37: (per cent) | U37: 0's | V37: 0's | W37: Average number of trees per maintenance span | AC37: Number of spans | AE37: number | AF37: (per cent)
B38: Pricing | C38: PRICING PROPOSAL
B39: PTRM | C39: POST TAX REVENUE MODEL | E39: =LEFT(dms_MultiYear_FinalYear_Result,2)&RIGHT(dms_MultiYear_FinalYear_Result,2) ->  | F39: =LEFT(dms_MultiYear_FinalYear_Result,2)&RIGHT(dms_MultiYear_FinalYear_Result,2) | N39: Reconductor - Single circuit | O39: Number | P39: net circuit km added | Q39: net circuit km added | R39: net circuit km added | S39: net circuit km added | U39: years | V39: years | W39: Average frequency of cutting cycle | AC39: Years | AE39: number
B40: Reset | C40: REGULATORY REPORTING STATEMENT | E40: =LEFT(dms_MultiYear_FinalYear_Result,2)&RIGHT(dms_MultiYear_FinalYear_Result,2) ->  | F40: =LEFT(dms_MultiYear_FinalYear_Result,2)&RIGHT(dms_MultiYear_FinalYear_Result,2) | H40: Formula errors are OK | N40: Reconductor - Dual circuit | O40: Number | P40: total spend $0s | Q40: total spend $0s | R40: total spend $0s | S40: total spend $0s | AC40: Years | AE40: number
B41: RFM | C41: ROLL FORWARD MODEL | E41: =LEFT(dms_CRCP_FinalYear_Result,2)&RIGHT(dms_CRCP_FinalYear_Result,2) ->  | F41: =LEFT(dms_CRCP_FinalYear_Result,2)&RIGHT(dms_CRCP_FinalYear_Result,2) | N41: Other | P41: net circuit km added | Q41: net circuit km added | R41: net circuit km added | S41: net circuit km added | AC41: Trees | AE41: number
B42: WACC | C42: WEIGHTED AVERAGE COST OF CAPITAL | E42: =LEFT(dms_MultiYear_FinalYear_Result,2)&RIGHT(dms_MultiYear_FinalYear_Result,2) ->  | F42: =LEFT(dms_MultiYear_FinalYear_Result,2)&RIGHT(dms_MultiYear_FinalYear_Result,2) | P42: total spend $0s | Q42: total spend $0s | R42: total spend $0s | S42: total spend $0s | AC42: Trees | AE42: number
P43: 0's | R43: $0s | AC43: Defects | AE43: number
B44: dms_DataQuality_List | C44: dms_Confid_status_List | P44: 0's | AC44: Defects | AE44: number
B45: Actual | C45: Public | P45: 0's | AC45: Spans | AE45: number
B46: Estimate | C46: Confidential | P46: $0s | AC46: km | AE46: (per cent)
B47: Consolidated | AC47: Spans | AE47: (per cent)
K50: STYLES IN USE | O50: For PTRM files - this field set the text for the named range "DMS_Xfactor" which in all cases is simply the text "x factors" - this saves putting in each old gas PTRM file | S50: for RFMs | Z50: for TNSP only | AD50: for DNSP & TNSP
B51: For all files either AER or business needs to be able to specify the type of submission | C51: For PTRM & RFM templates we must provide a choice in case they change their form of control - otherwise it is drawn from the business specific lookup table above. | J51: dms_1 | O51: DMS_Xfactor | S51: dms_Beg | T51: dms_Mid | U51: dms_End | Z51: dms_030601_01_UOM | AB51: dms_030701_01_UOM | AC51: dms_030702_01_UOM | AD51: dms_EB_RAB_PIT
B52: dms_SourceList | C52: dms_FormControl_Choices | J52: dms_2 | O52: x factors | S52: Beginning of year | T52: Mid year | U52: End of Year | Z52: % | AB52: Number of spans | AC52: km | AD52: Beginning of year
B53: After appeal | C53: Revenue cap | J53: dms_3 | Z53: number | AB53: Years | AC53: % | AD53: End of year
B54: Draft decision | C54: Revenue yield | J54: dms_4 | S54: for PTRMs | Z54: number | AB54: Trees | AC54: km | AD54: End of year
B55: Final decision | C55: Weighted average price cap | J55: dms_5 | S55: dms_PTRM_RAB_PIT | T55: dms_PTRM_TAB_PIT | Z55: % | AB55: Defects | AC55: number | AD55: End of year
B56: PTRM update 1 | J56: dms_NUM | S56: Beginning of year | T56: Beginning of year | Z56: number | AB56: Number of spans | AD56: End of year
B57: PTRM update 2 | J57: dms_NUM% | S57: End of year | T57: End of year | Z57: number | AB57: km | AD57: End of year
B58: PTRM update 3 | J58: dms_Row_Locked | S58: End of year | T58: End of year | Z58: % | AB58: km
B59: PTRM update 4 | J59: dms_Row1 | S59: End of year | T59: End of year | Z59: number | AB59: Number of spans
B60: PTRM update 5 | J60: dms_Row2 | S60: End of year | Z60: number
B61: PTRM update 6 | J61: dms_T1 | Z61: %
B62: PTRM update 7 | J62: dms_T2 | Z62: number
B63: Regulatory proposal | J63: dms_BH | Z63: %
B64: Reporting | J64: dms_BY1 | Z64: number
B65: Revised regulatory proposal | J65: dms_BY2 | Z65: %
J66: dms_GH | Z66: number
J67: dms_GY1
J68: dms_GY2
B70: Reason for interruption | C70: dms_Reason_Interruption_Detailed | D70: dms_Reason_Interruption | E70: dms_STPIS_Exclusion_List | F70: dms_020301_ProjectType_List | G70: dms_020302_ProjectType_List
B71: Animal | C71: Animal impact | D71: Animal | E71: Weather | F71: New substation establishment | G71: New line on new route - single circuit
C72: Animal nesting/burrowing, etc and other | D72: Asset failure | E72: Equipment failure | F72: Capacity upgrade | G72: New line on new route - dual circuit
C73: Other | D73: Other | E73: Operational error | F73: Voltage upgrade | G73: New line on new route - other
B74: Asset failure | C74: LV | D74: Overloads | E74: Vegetation | F74: Other | G74: Line rebuild over existing route - single circuit
C75: Distribution substation | D75: Planned | E75: Animals | G75: Line rebuild over existing route - dual circuit
C76: HV | D76: Network business | E76: Third party impacts | G76: Reconductor - Single circuit
C77: Zone substation | D77: Third party | E77: Transmission failure | G77: Reconductor - Dual circuit
C78: Subtransmission | D78: Unknown | E78: Load shedding | G78: Reconductor - Other
B79: Other | C79: insert description of 'other' | D79: Vegetation | E79: Inter-distributor connection failure | G79: Line upgrade - raising/retensoring
B80: Overloads | C80: - | D80: Weather | E80: Other | G80: Line upgrade - voltage upgrade
B81: Planned | C81: - | D81: 2 - STPIS Exclusion (3.3)(a) | G81: Line upgrade - capacity
B82: Network business | C82: Network error | D82: 3 - STPIS Exclusion (3.3)(a) | G82: String spare circuit
C83: Switching and protection error | D83: 4 - STPIS Exclusion (3.3)(a) | G83: Other
B84: Third party | C84: Fire | D84: 5 - STPIS Exclusion (3.3)(a)
C85: Other | D85: 6 - STPIS Exclusion (3.3)(a)
C86: Dig-in | D86: 7 - STPIS Exclusion (3.3)(a)
C87: Unauthorised access
C88: Vehicle impact
B89: Unknown | C89: Unknown
B90: Vegetation | C90: Blow-in/Fall-in - NSP responsibility
C91: Grow-in - NSP responsibility
C92: Blow-in/Fall-in - Other responsible party
C93: Grow-in - Other responsible party
B94: Weather
B95: 2 - STPIS Exclusion (3.3)(a)
B96: 3 - STPIS Exclusion (3.3)(a)
B97: 4 - STPIS Exclusion (3.3)(a)
B98: 5 - STPIS Exclusion (3.3)(a)
B99: 6 - STPIS Exclusion (3.3)(a)
B100: 7 - STPIS Exclusion (3.3)(a)
P105: The first row in these tables always refers to CRY in either it's financial or calendar format.
P106: The correct column headings will be correctly generated in the relevant worksheets in Recast RIN templates
B108: These are indeces and lookup values for various dates. All step from the value placed in FRCP_y1 on the business and other details worksheet | O108: These date tables are currently used in the Recast templates to provide column headings and conditional formatting
B109: dms_FRCPlength_Num_List | C109: dms_FinalYear_List | D109: dms_CRCPlength_Num_List | E109: dms_CFinalYear_List | F109: dms_FRCP_years | H109: dms_CRCP_years | J109: dms_CRCP_index | L109: dms_Financial_Years | M109: dms_Calendar_Years | O109: CRY from input cell on business sheet | P109: CRY - financial | Q109: dms_FinYears | R109: CRY calendar | S109: dms_CalYears
B110: 1 | C110: dms_FRCP_y1 | D110: 1 | E110: CRCP_y1 | F110: =FRCP_y1 -> 2005-06 | G110: dms_FRCP_y1 | H110: =IF(dms_RPT="financial",VALUE(LEFT(dms_FRCP_y1,4)-1)&"-"&TEXT(VALUE(MID(dms_FRCP_y1,3,2)),"00"),VALUE(LEFT(dms_FRCP_y1,4)-1)) ->  | I110: dms_CRCP_yZ | J110: 1 | L110: 2005-06 | M110: 2006 | O110: =CRY -> 2023-24 | P110: =CRY -> 2023-24 | Q110: dms_CRYf_y1 | R110: =CRY -> 2023-24 | S110: dms_CRYc_y1
B111: 2 | C111: dms_FRCP_y2 | D111: 2 | E111: CRCP_y2 | F111: =IF(dms_RPT="financial",VALUE(LEFT(dms_FRCP_y1,4)+1)&"-"&TEXT(VALUE(RIGHT(dms_FRCP_y1,2)+1),"00"),VALUE(LEFT(dms_FRCP_y1,4)+1)) ->  | G111: dms_FRCP_y2 | H111: =IF(dms_RPT="financial",VALUE(LEFT(dms_CRCP_yZ,4)-1)&"-"&TEXT(VALUE(MID(dms_CRCP_yZ,3,2)),"00"),VALUE(LEFT(dms_CRCP_yZ,4)-1)) ->  | I111: dms_CRCP_yY | J111: 2 | L111: 2006-07 | M111: 2007 | P111: =VALUE(LEFT(dms_CRYf_y1,4)+1)&"-"&TEXT(MID(dms_CRYf_y1,3,2)+2,"00") -> 2024-25 | Q111: dms_CRYf_y2 | R111: =VALUE(LEFT(dms_CRYc_y1,4)+1) -> 2024 | S111: dms_CRYc_y2
B112: 3 | C112: dms_FRCP_y3 | D112: 3 | E112: CRCP_y3 | F112: =IF(dms_RPT="financial",VALUE(LEFT(dms_FRCP_y2,4)+1)&"-"&TEXT(VALUE(RIGHT(dms_FRCP_y2,2)+1),"00"),VALUE(LEFT(dms_FRCP_y2,4)+1)) ->  | G112: dms_FRCP_y3 | H112: =IF(dms_RPT="financial",VALUE(LEFT(dms_CRCP_yY,4)-1)&"-"&TEXT(VALUE(MID(dms_CRCP_yY,3,2)),"00"),VALUE(LEFT(dms_CRCP_yY,4)-1)) ->  | I112: dms_CRCP_yX | J112: 3 | L112: 2007-08 | M112: 2008 | P112: =VALUE(LEFT(dms_CRYf_y2,4)+1)&"-"&TEXT(MID(dms_CRYf_y2,3,2)+2,"00") -> 2025-26 | Q112: dms_CRYf_y3 | R112: =VALUE(LEFT(dms_CRYc_y2,4)+1) -> 2025 | S112: dms_CRYc_y3
B113: 4 | C113: dms_FRCP_y4 | D113: 4 | E113: CRCP_y4 | F113: =IF(dms_RPT="financial",VALUE(LEFT(dms_FRCP_y3,4)+1)&"-"&TEXT(VALUE(RIGHT(dms_FRCP_y3,2)+1),"00"),VALUE(LEFT(dms_FRCP_y3,4)+1)) ->  | G113: dms_FRCP_y4 | H113: =IF(dms_RPT="financial",VALUE(LEFT(dms_CRCP_yX,4)-1)&"-"&TEXT(VALUE(MID(dms_CRCP_yX,3,2)),"00"),VALUE(LEFT(dms_CRCP_yX,4)-1)) ->  | I113: dms_CRCP_yW | J113: 4 | L113: 2008-09 | M113: 2009 | P113: =VALUE(LEFT(dms_CRYf_y3,4)+1)&"-"&TEXT(MID(dms_CRYf_y3,3,2)+2,"00") -> 2026-27 | Q113: dms_CRYf_y4 | R113: =VALUE(LEFT(dms_CRYc_y3,4)+1) -> 2026 | S113: dms_CRYc_y4
B114: 5 | C114: dms_FRCP_y5 | D114: 5 | E114: CRCP_y5 | F114: =IF(dms_RPT="financial",VALUE(LEFT(dms_FRCP_y4,4)+1)&"-"&TEXT(VALUE(RIGHT(dms_FRCP_y4,2)+1),"00"),VALUE(LEFT(dms_FRCP_y4,4)+1)) ->  | G114: dms_FRCP_y5 | H114: =IF(dms_RPT="financial",VALUE(LEFT(dms_CRCP_yW,4)-1)&"-"&TEXT(VALUE(MID(dms_CRCP_yW,3,2)),"00"),VALUE(LEFT(dms_CRCP_yW,4)-1)) ->  | I114: dms_CRCP_yV | J114: 5 | L114: 2009-10 | M114: 2010 | P114: =VALUE(LEFT(dms_CRYf_y4,4)+1)&"-"&TEXT(MID(dms_CRYf_y4,3,2)+2,"00") -> 2027-28 | Q114: dms_CRYf_y5 | R114: =VALUE(LEFT(dms_CRYc_y4,4)+1) -> 2027 | S114: dms_CRYc_y5
B115: 6 | C115: dms_FRCP_y6 | D115: 6 | E115: CRCP_y6 | F115: =IF(dms_RPT="financial",VALUE(LEFT(dms_FRCP_y5,4)+1)&"-"&TEXT(VALUE(RIGHT(dms_FRCP_y5,2)+1),"00"),VALUE(LEFT(dms_FRCP_y5,4)+1)) ->  | G115: dms_FRCP_y6 | H115: =IF(dms_RPT="financial",VALUE(LEFT(dms_CRCP_yV,4)-1)&"-"&TEXT(VALUE(MID(dms_CRCP_yV,3,2)),"00"),VALUE(LEFT(dms_CRCP_yV,4)-1)) ->  | I115: dms_CRCP_yU | J115: 6 | L115: 2010-11 | M115: 2011 | P115: =VALUE(LEFT(dms_CRYf_y5,4)+1)&"-"&TEXT(MID(dms_CRYf_y5,3,2)+2,"00") -> 2028-29 | Q115: dms_CRYf_y6 | R115: =VALUE(LEFT(dms_CRYc_y5,4)+1) -> 2028 | S115: dms_CRYc_y6
B116: 7 | C116: dms_FRCP_y7 | D116: 7 | E116: CRCP_y7 | F116: =IF(dms_RPT="financial",VALUE(LEFT(dms_FRCP_y6,4)+1)&"-"&TEXT(VALUE(RIGHT(dms_FRCP_y6,2)+1),"00"),VALUE(LEFT(dms_FRCP_y6,4)+1)) ->  | G116: dms_FRCP_y7 | H116: =IF(dms_RPT="financial",VALUE(LEFT(dms_CRCP_yU,4)-1)&"-"&TEXT(VALUE(MID(dms_CRCP_yU,3,2)),"00"),VALUE(LEFT(dms_CRCP_yU,4)-1)) ->  | I116: dms_CRCP_yT | J116: 7 | L116: 2011-12 | M116: 2012 | P116: =VALUE(LEFT(dms_CRYf_y6,4)+1)&"-"&TEXT(MID(dms_CRYf_y6,3,2)+2,"00") -> 2029-30 | Q116: dms_CRYf_y7 | R116: =VALUE(LEFT(dms_CRYc_y6,4)+1) -> 2029 | S116: dms_CRYc_y7
B117: 8 | C117: dms_FRCP_y8 | D117: 8 | E117: CRCP_y8 | F117: =IF(dms_RPT="financial",VALUE(LEFT(dms_FRCP_y7,4)+1)&"-"&TEXT(VALUE(RIGHT(dms_FRCP_y7,2)+1),"00"),VALUE(LEFT(dms_FRCP_y7,4)+1)) ->  | G117: dms_FRCP_y8 | H117: =IF(dms_RPT="financial",VALUE(LEFT(dms_CRCP_yT,4)-1)&"-"&TEXT(VALUE(MID(dms_CRCP_yT,3,2)),"00"),VALUE(LEFT(dms_CRCP_yT,4)-1)) ->  | I117: dms_CRCP_yS | J117: 8 | L117: 2012-13 | M117: 2013 | P117: =VALUE(LEFT(dms_CRYf_y7,4)+1)&"-"&TEXT(MID(dms_CRYf_y7,3,2)+2,"00") -> 2030-31 | Q117: dms_CRYf_y8 | R117: =VALUE(LEFT(dms_CRYc_y7,4)+1) -> 2030 | S117: dms_CRYc_y8
B118: 9 | C118: dms_FRCP_y9 | D118: 9 | E118: CRCP_y9 | F118: =IF(dms_RPT="financial",VALUE(LEFT(dms_FRCP_y8,4)+1)&"-"&TEXT(VALUE(RIGHT(dms_FRCP_y8,2)+1),"00"),VALUE(LEFT(dms_FRCP_y8,4)+1)) ->  | G118: dms_FRCP_y9 | H118: =IF(dms_RPT="financial",VALUE(LEFT(dms_CRCP_yS,4)-1)&"-"&TEXT(VALUE(MID(dms_CRCP_yS,3,2)),"00"),VALUE(LEFT(dms_CRCP_yS,4)-1)) ->  | I118: dms_CRCP_yR | J118: 9 | L118: 2013-14 | M118: 2014 | P118: =VALUE(LEFT(dms_CRYf_y8,4)+1)&"-"&TEXT(MID(dms_CRYf_y8,3,2)+2,"00") -> 2031-32 | Q118: dms_CRYf_y9 | R118: =VALUE(LEFT(dms_CRYc_y8,4)+1) -> 2031 | S118: dms_CRYc_y9
B119: 10 | C119: dms_FRCP_y10 | D119: 10 | E119: CRCP_y10 | F119: =IF(dms_RPT="financial",VALUE(LEFT(dms_FRCP_y9,4)+1)&"-"&TEXT(VALUE(RIGHT(dms_FRCP_y9,2)+1),"00"),VALUE(LEFT(dms_FRCP_y9,4)+1)) ->  | G119: dms_FRCP_y10 | H119: =IF(dms_RPT="financial",VALUE(LEFT(dms_CRCP_yR,4)-1)&"-"&TEXT(VALUE(MID(dms_CRCP_yR,3,2)),"00"),VALUE(LEFT(dms_CRCP_yR,4)-1)) ->  | I119: dms_CRCP_yQ | J119: 10 | L119: 2014-15 | M119: 2015 | P119: =VALUE(LEFT(dms_CRYf_y9,4)+1)&"-"&TEXT(MID(dms_CRYf_y9,3,2)+2,"00") -> 2032-33 | Q119: dms_CRYf_y10 | R119: =VALUE(LEFT(dms_CRYc_y9,4)+1) -> 2032 | S119: dms_CRYc_y10
B120: 11 | C120: dms_FRCP_y11 | D120: 11 | E120: CRCP_y11 | F120: =IF(dms_RPT="financial",VALUE(LEFT(dms_FRCP_y10,4)+1)&"-"&TEXT(VALUE(RIGHT(dms_FRCP_y10,2)+1),"00"),VALUE(LEFT(dms_FRCP_y10,4)+1)) ->  | G120: dms_FRCP_y11 | H120: =IF(dms_RPT="financial",VALUE(LEFT(dms_CRCP_yQ,4)-1)&"-"&TEXT(VALUE(MID(dms_CRCP_yQ,3,2)),"00"),VALUE(LEFT(dms_CRCP_yQ,4)-1)) ->  | I120: dms_CRCP_yP | J120: 11 | L120: 2015-16 | M120: 2016 | P120: =VALUE(LEFT(dms_CRYf_y10,4)+1)&"-"&TEXT(MID(dms_CRYf_y10,3,2)+2,"00") -> 2033-34 | Q120: dms_CRYf_y11 | R120: =VALUE(LEFT(dms_CRYc_y10,4)+1) -> 2033 | S120: dms_CRYc_y11
B121: 12 | C121: dms_FRCP_y12 | D121: 12 | E121: CRCP_y12 | F121: =IF(dms_RPT="financial",VALUE(LEFT(dms_FRCP_y11,4)+1)&"-"&TEXT(VALUE(RIGHT(dms_FRCP_y11,2)+1),"00"),VALUE(LEFT(dms_FRCP_y11,4)+1)) ->  | G121: dms_FRCP_y12 | H121: =IF(dms_RPT="financial",VALUE(LEFT(dms_CRCP_yP,4)-1)&"-"&TEXT(VALUE(MID(dms_CRCP_yP,3,2)),"00"),VALUE(LEFT(dms_CRCP_yP,4)-1)) ->  | I121: dms_CRCP_yO | J121: 12 | L121: 2016-17 | M121: 2017 | P121: =VALUE(LEFT(dms_CRYf_y11,4)+1)&"-"&TEXT(MID(dms_CRYf_y11,3,2)+2,"00") -> 2034-35 | Q121: dms_CRYf_y12 | R121: =VALUE(LEFT(dms_CRYc_y11,4)+1) -> 2034 | S121: dms_CRYc_y12
B122: 13 | C122: dms_FRCP_y13 | D122: 13 | E122: CRCP_y13 | F122: =IF(dms_RPT="financial",VALUE(LEFT(dms_FRCP_y12,4)+1)&"-"&TEXT(VALUE(RIGHT(dms_FRCP_y12,2)+1),"00"),VALUE(LEFT(dms_FRCP_y12,4)+1)) ->  | G122: dms_FRCP_y13 | H122: =IF(dms_RPT="financial",VALUE(LEFT(dms_CRCP_yO,4)-1)&"-"&TEXT(VALUE(MID(dms_CRCP_yO,3,2)),"00"),VALUE(LEFT(dms_CRCP_yO,4)-1)) ->  | I122: dms_CRCP_yN | J122: 13 | L122: 2017-18 | M122: 2018 | P122: =VALUE(LEFT(dms_CRYf_y12,4)+1)&"-"&TEXT(MID(dms_CRYf_y12,3,2)+2,"00") -> 2035-36 | Q122: dms_CRYf_y13 | R122: =VALUE(LEFT(dms_CRYc_y12,4)+1) -> 2035 | S122: dms_CRYc_y13
B123: 14 | C123: dms_FRCP_y14 | D123: 14 | E123: CRCP_y14 | F123: =IF(dms_RPT="financial",VALUE(LEFT(dms_FRCP_y13,4)+1)&"-"&TEXT(VALUE(RIGHT(dms_FRCP_y13,2)+1),"00"),VALUE(LEFT(dms_FRCP_y13,4)+1)) ->  | G123: dms_FRCP_y14 | H123: =IF(dms_RPT="financial",VALUE(LEFT(dms_CRCP_yN,4)-1)&"-"&TEXT(VALUE(MID(dms_CRCP_yN,3,2)),"00"),VALUE(LEFT(dms_CRCP_yN,4)-1)) ->  | I123: dms_CRCP_yM | J123: 14 | L123: 2018-19 | M123: 2019 | P123: =VALUE(LEFT(dms_CRYf_y13,4)+1)&"-"&TEXT(MID(dms_CRYf_y13,3,2)+2,"00") -> 2036-37 | Q123: dms_CRYf_y14 | R123: =VALUE(LEFT(dms_CRYc_y13,4)+1) -> 2036 | S123: dms_CRYc_y14
B124: 15 | C124: dms_FRCP_y15 | D124: 15 | E124: CRCP_y15 | F124: =IF(dms_RPT="financial",VALUE(LEFT(dms_FRCP_y14,4)+1)&"-"&TEXT(VALUE(RIGHT(dms_FRCP_y14,2)+1),"00"),VALUE(LEFT(dms_FRCP_y14,4)+1)) ->  | G124: dms_FRCP_y15 | H124: =IF(dms_RPT="financial",VALUE(LEFT(dms_CRCP_yM,4)-1)&"-"&TEXT(VALUE(MID(dms_CRCP_yM,3,2)),"00"),VALUE(LEFT(dms_CRCP_yM,4)-1)) ->  | I124: dms_CRCP_yL | J124: 15 | L124: 2019-20 | M124: 2020 | P124: =VALUE(LEFT(dms_CRYf_y14,4)+1)&"-"&TEXT(MID(dms_CRYf_y14,3,2)+2,"00") -> 2037-38 | Q124: dms_CRYf_y15 | R124: =VALUE(LEFT(dms_CRYc_y14,4)+1) -> 2037 | S124: dms_CRYc_y15
L125: 2020-21 | M125: 2021 | P125: =VALUE(LEFT(dms_CRYf_y15,4)+1)&"-"&TEXT(MID(dms_CRYf_y15,3,2)+2,"00") -> 2038-39 | Q125: dms_CRYf_y16 | R125: =VALUE(LEFT(dms_CRYc_y15,4)+1) -> 2038 | S125: dms_CRYc_y16
B126: These are drop down lists for businesses to select the correct FRCP_y1 on the business and other details worksheet. This also populates the column headings in the worksheets | L126: 2021-22 | M126: 2022 | P126: =VALUE(LEFT(dms_CRYf_y16,4)+1)&"-"&TEXT(MID(dms_CRYf_y16,3,2)+2,"00") -> 2039-40 | Q126: dms_CRYf_y17 | R126: =VALUE(LEFT(dms_CRYc_y16,4)+1) -> 2039 | S126: dms_CRYc_y17
B127: dms_RCP_fyear_list | C127: dms_CRY_ListF | D127: dms_CRY_ListC | E127: dms_RCP_cyear_list | F127: dms_FRCP_fyear_list | G127: dms_FRCP_ListF | H127: dms_FRCP_ListC | I127: dms_FRCP_cyear_list | L127: 2022-23 | M127: 2023 | P127: =VALUE(LEFT(dms_CRYf_y17,4)+1)&"-"&TEXT(MID(dms_CRYf_y17,3,2)+2,"00") -> 2040-41 | Q127: dms_CRYf_y18 | R127: =VALUE(LEFT(dms_CRYc_y17,4)+1) -> 2040 | S127: dms_CRYc_y18
B128: dms_y1 | C128: =CRY -> 2023-24 | D128: 2006 | E128: dms_cy1 | F128: dms_frcp_fy1 | G128: 2010-11 | H128: 2011 | I128: dms_crcp_cy1 | L128: 2023-24 | M128: 2024 | P128: =VALUE(LEFT(dms_CRYf_y18,4)+1)&"-"&TEXT(MID(dms_CRYf_y18,3,2)+2,"00") -> 2041-42 | Q128: dms_CRYf_y19 | R128: =VALUE(LEFT(dms_CRYc_y18,4)+1) -> 2041 | S128: dms_CRYc_y19
B129: dms_y2 | C129: =IF(dms_RPT="financial",VALUE(LEFT(CRY,4)+1)&"-"&TEXT(MID(CRY,3,2)+2,"00"),VALUE(LEFT(CRY,4)+1)) ->  | D129: 2007 | E129: dms_cy2 | F129: dms_frcp_fy2 | G129: 2011-12 | H129: 2012 | I129: dms_crcp_cy2 | L129: 2024-25 | M129: 2025 | P129: =VALUE(LEFT(dms_CRYf_y19,4)+1)&"-"&TEXT(MID(dms_CRYf_y19,3,2)+2,"00") -> 2042-43 | Q129: dms_CRYf_y20 | R129: =VALUE(LEFT(dms_CRYc_y19,4)+1) -> 2042 | S129: dms_CRYc_y20
B130: dms_y3 | C130: =IF(dms_RPT="financial",VALUE(LEFT(dms_fy2,4)+1)&"-"&TEXT(MID(dms_fy2,3,2)+2,"00"),VALUE(LEFT(dms_fy2,4)+1)) ->  | D130: 2008 | E130: dms_cy3 | F130: dms_frcp_fy3 | G130: 2012-13 | H130: 2013 | I130: dms_crcp_cy3 | L130: 2025-26 | M130: 2026
B131: dms_y4 | C131: =IF(dms_RPT="financial",VALUE(LEFT(dms_fy3,4)+1)&"-"&TEXT(MID(dms_fy3,3,2)+2,"00"),VALUE(LEFT(dms_fy3,4)+1)) ->  | D131: 2009 | E131: dms_cy4 | F131: dms_frcp_fy4 | G131: 2013-14 | H131: 2014 | I131: dms_crcp_cy4 | L131: 2026-27 | M131: 2027
B132: dms_y5 | C132: =IF(dms_RPT="financial",VALUE(LEFT(dms_fy4,4)+1)&"-"&TEXT(MID(dms_fy4,3,2)+2,"00"),VALUE(LEFT(dms_fy4,4)+1)) ->  | D132: 2010 | E132: dms_cy5 | F132: dms_frcp_fy5 | G132: 2014-15 | H132: 2015 | I132: dms_crcp_cy5 | L132: 2027-28 | M132: 2028
B133: dms_y6 | C133: =IF(dms_RPT="financial",VALUE(LEFT(dms_fy5,4)+1)&"-"&TEXT(MID(dms_fy5,3,2)+2,"00"),VALUE(LEFT(dms_fy5,4)+1)) ->  | D133: 2011 | E133: dms_cy6 | F133: dms_frcp_fy6 | G133: 2015-16 | H133: 2016 | I133: dms_crcp_cy6 | L133: 2028-29 | M133: 2029
B134: dms_y7 | C134: =IF(dms_RPT="financial",VALUE(LEFT(dms_fy6,4)+1)&"-"&TEXT(MID(dms_fy6,3,2)+2,"00"),VALUE(LEFT(dms_fy6,4)+1)) ->  | D134: 2012 | E134: dms_cy7 | F134: dms_frcp_fy7 | G134: 2016-17 | H134: 2017 | I134: dms_crcp_cy7 | L134: 2029-30 | M134: 2030
B135: dms_y8 | C135: =IF(dms_RPT="financial",VALUE(LEFT(dms_fy7,4)+1)&"-"&TEXT(MID(dms_fy7,3,2)+2,"00"),VALUE(LEFT(dms_fy7,4)+1)) ->  | D135: 2013 | E135: dms_cy8 | F135: dms_frcp_fy8 | G135: 2017-18 | H135: 2018 | I135: dms_crcp_cy8 | L135: 2030-31 | M135: 2031
B136: dms_y9 | C136: =IF(dms_RPT="financial",VALUE(LEFT(dms_fy8,4)+1)&"-"&TEXT(MID(dms_fy8,3,2)+2,"00"),VALUE(LEFT(dms_fy8,4)+1)) ->  | D136: 2014 | E136: dms_cy9 | F136: dms_frcp_fy9 | G136: 2018-19 | H136: 2019 | I136: dms_crcp_cy9 | L136: 2031-32 | M136: 2032
B137: dms_y10 | C137: =IF(dms_RPT="financial",VALUE(LEFT(dms_fy9,4)+1)&"-"&TEXT(MID(dms_fy9,3,2)+2,"00"),VALUE(LEFT(dms_fy9,4)+1)) ->  | D137: 2015 | E137: dms_cy10 | F137: dms_frcp_fy10 | G137: 2019-20 | H137: 2020 | I137: dms_crcp_cy10 | L137: 2032-33 | M137: 2033
B138: dms_y11 | C138: =IF(dms_RPT="financial",VALUE(LEFT(dms_fy10,4)+1)&"-"&TEXT(MID(dms_fy10,3,2)+2,"00"),VALUE(LEFT(dms_fy10,4)+1)) ->  | D138: 2016 | E138: dms_cy11 | F138: dms_frcp_fy11 | G138: 2020-21 | H138: 2021 | I138: dms_crcp_cy11 | L138: 2033-34 | M138: 2034
B139: dms_y12 | C139: =IF(dms_RPT="financial",VALUE(LEFT(dms_fy11,4)+1)&"-"&TEXT(MID(dms_fy11,3,2)+2,"00"),VALUE(LEFT(dms_fy11,4)+1)) ->  | D139: 2017 | E139: dms_cy12 | F139: dms_frcp_fy12 | G139: 2021-22 | H139: 2022 | I139: dms_crcp_cy12 | L139: 2034-35 | M139: 2035
B140: dms_y13 | C140: =IF(dms_RPT="financial",VALUE(LEFT(dms_fy12,4)+1)&"-"&TEXT(MID(dms_fy12,3,2)+2,"00"),VALUE(LEFT(dms_fy12,4)+1)) ->  | D140: 2018 | E140: dms_cy13 | F140: dms_frcp_fy13 | G140: 2022-23 | H140: 2023 | I140: dms_crcp_cy13 | L140: 2035-36 | M140: 2036
B141: dms_y14 | C141: =IF(dms_RPT="financial",VALUE(LEFT(dms_fy13,4)+1)&"-"&TEXT(MID(dms_fy13,3,2)+2,"00"),VALUE(LEFT(dms_fy13,4)+1)) ->  | D141: 2019 | E141: dms_cy14 | F141: dms_frcp_fy14 | G141: 2023-24 | H141: 2024 | I141: dms_crcp_cy14
B142: dms_y15 | C142: =IF(dms_RPT="financial",VALUE(LEFT(dms_fy14,4)+1)&"-"&TEXT(MID(dms_fy14,3,2)+2,"00"),VALUE(LEFT(dms_fy14,4)+1)) ->  | D142: 2020 | E142: dms_cy15 | F142: dms_frcp_fy15 | G142: 2024-25 | H142: 2025 | I142: dms_crcp_cy15
B143: dms_y16 | C143: =IF(dms_RPT="financial",VALUE(LEFT(dms_fy15,4)+1)&"-"&TEXT(MID(dms_fy15,3,2)+2,"00"),VALUE(LEFT(dms_fy15,4)+1)) ->  | D143: 2021 | E143: dms_cy16
B144: dms_y17 | C144: =IF(dms_RPT="financial",VALUE(LEFT(dms_fy16,4)+1)&"-"&TEXT(MID(dms_fy16,3,2)+2,"00"),VALUE(LEFT(dms_fy16,4)+1)) ->  | D144: 2022 | E144: dms_cy17
B145: dms_y18 | C145: =IF(dms_RPT="financial",VALUE(LEFT(dms_fy17,4)+1)&"-"&TEXT(MID(dms_fy17,3,2)+2,"00"),VALUE(LEFT(dms_fy17,4)+1)) ->  | D145: 2023 | E145: dms_cy18
B146: dms_y19 | C146: =IF(dms_RPT="financial",VALUE(LEFT(dms_fy18,4)+1)&"-"&TEXT(MID(dms_fy18,3,2)+2,"00"),VALUE(LEFT(dms_fy18,4)+1)) ->  | D146: 2024 | E146: dms_cy19
B147: dms_y20 | C147: =IF(dms_RPT="financial",VALUE(LEFT(dms_fy19,4)+1)&"-"&TEXT(MID(dms_fy19,3,2)+2,"00"),VALUE(LEFT(dms_fy19)+1)) ->  | D147: 2025 | E147: dms_cy20
B153: These "row descriptions" are the column headings in the various templates but become row descriptions in the ETL process
C154: Table 6.3 sustained interruptions - row descriptions
C155: dms_060301_CustNo_Affected_Row | D155: dms_060301_Avg_Duration_Sustained_Int_Row | E155: dms_060301_Effect_unplanned_SAIDI_Row | F155: dms_060301_Effect_unplanned_SAIFI_Row
C156: Number of customers affected by the interruption | D156: Average duration of sustained customer interruption | E156: Effect on unplanned SAIDI | F156: Effect on unplanned SAIFI
C160: Table 6.1 telephone answering - row descriptions and start date
C161: dms_060101_Rows | D161: dms_060102_Rows | E161: dms_060101_StartDateTxt
C162: Total number of calls (after removing excluded events) | D162: Number of calls answered within 30 seconds (after excluding excluded events) | E162: =dms_060701_StartDateTxt -> 1-Jul-2023
H166: dms_0603_FeederList | I166: =INDEX(dms_FeederName_1,MATCH(dms_TradingName,dms_TradingName_List)) -> CBD | J166: =INDEX(dms_FeederName_2,MATCH(dms_TradingName,dms_TradingName_List)) -> Urban | K166: =INDEX(dms_FeederName_3,MATCH(dms_TradingName,dms_TradingName_List)) -> Short rural | L166: =INDEX(dms_FeederName_4,MATCH(dms_TradingName,dms_TradingName_List)) -> Long rural
C167: Table 6.7.1 - daily performance data - unplanned - MAIFI -- row descriptions and header named range values
C168: These headings (Lists) are determined from the INDEX/MATCH function on the NSP selected on the Business & other details sheet
B169: dms_060701_Feeder_Header_Lvl4 | C169: =INDEX(dms_FeederName_1,MATCH(dms_TradingName,dms_TradingName_List)) -> CBD | D169: =INDEX(dms_FeederName_1,MATCH(dms_TradingName,dms_TradingName_List)) -> CBD | E169: =INDEX(dms_FeederName_2,MATCH(dms_TradingName,dms_TradingName_List)) -> Urban | F169: =INDEX(dms_FeederName_2,MATCH(dms_TradingName,dms_TradingName_List)) -> Urban | G169: =INDEX(dms_FeederName_3,MATCH(dms_TradingName,dms_TradingName_List)) -> Short rural | H169: =INDEX(dms_FeederName_3,MATCH(dms_TradingName,dms_TradingName_List)) -> Short rural | I169: =INDEX(dms_FeederName_4,MATCH(dms_TradingName,dms_TradingName_List)) -> Long rural | J169: =INDEX(dms_FeederName_4,MATCH(dms_TradingName,dms_TradingName_List)) -> Long rural | K169: =IF((INDEX(dms_FeederName_5,MATCH(dms_TradingName,dms_TradingName_List))=0),"Network",(INDEX(dms_FeederName_5,MATCH(dms_TradingName,dms_TradingName_List)))) -> Network | L169: =IF((INDEX(dms_FeederName_5,MATCH(dms_TradingName,dms_TradingName_List))=0),"Network",(INDEX(dms_FeederName_5,MATCH(dms_TradingName,dms_TradingName_List)))) -> Network | M169: Network | N169: Network
B171: dms_060701_Rows | C171: All events | D171: After removing excluded events | E171: All events | F171: After removing excluded events | G171: All events | H171: After removing excluded events | I171: All events | J171: After removing excluded events | K171: All events | L171: After removing excluded events | M171: All events | N171: After removing excluded events
C172: the number of column headings changes from 10 to 12 depending on the number of feeder categories for the NSP
C177: Table 6.8.1 - row descriptions
C178: dms_060801_01_Rows | D178: dms_060801_02_Rows | E178: dms_060801_03_Rows | F178: dms_060801_04_Rows
C179: Number of interruptions | D179: Duration of interruptions | E179: Total unplanned minutes off supply | F179: Effect on unplanned MAIFI
C184: Table 7.9.4 - market impact component - row descriptions
B185: dms_070904_01_Rows | C185: without exclusions | D185: with exclusions
C191: Use this to add to existing files
C192: ARRs 6.7 STPIS daily performance
C193: dms_060101_Values | D193: dms_060102_Values | E193: dms_060701_Values
C194: dms_LeapYear
C196: ARR's 6.8 STPIS exclusions
C197: dms_060801_Event_Date | D197: dms_060801_OutageID | E197: dms_060801_FeederID | F197: dms_060801_FeederClass | G197: dms_060801_CauseID | H197: dms_060801_01_Values | I197: dms_060801_02_Values | J197: dms_060801_03_Values | K197: dms_060801_Excl_Cat | L197: dms_060801_04_Values
C198: dms_060801_StartCell
C200: CA 6.3 sustained interruptions
C201: dms_060301_Event_Date | D201: dms_060301_Event_Time | E201: dms_060301_AssetID | F201: dms_060301_FeederClass | G201: dms_060301_Reason | H201: dms_060301_DetailedReason | I201: dms_060301_CustNo_Affected_Values | J201: dms_060301_Avg_Duration_Sustained_Int_Values | K201: dms_060301_Effect_unplanned_SAIDI_Values | L201: dms_060301_Effect_unplanned_SAIFI_Values | M201: dms_060301_MED

Sheet Business & other details (hidden)
V1: ANNUAL REPORTING
V2: =INDEX(dms_TradingNameFull_List,MATCH(dms_TradingName,dms_TradingName_List)) -> Ergon Energy
V3: =CRY -> 2023-24
V4: BUSINESS & OTHER DETAILS
V6: INSTRUCTIONS
V7: Complete the following business details regulatory template before entering data or values in any other regulatory template. This regulatory template is linked to other cells within the spreadsheet and automatically generates column headings and conditional formatting to distinguish business specific input and non-input cells.
Q9: SUBMISSION PARTICULARS INPUT SHEET
Q11: TEMPLATE DATE - MAY 2024
V14: ENTITY DETAILS
V16: Business Name
V18: Short name | AL18: Ergon Energy
V19: ACN/ABN | AL19: =INDEX(dms_ABN_List,MATCH(dms_TradingName,dms_TradingName_List)) -> 50087646062
V23: Business Address | BQ23: Postal Address
V25: Address 1 | AL25: 420 Flinders Street | BI25: Address 1 | BQ25: PO Box 1090
V26: Address 2 | AL26: =IF(ISBLANK(INDEX(dms_Addr2_List,MATCH(dms_TradingName,dms_TradingName_List))),"",(INDEX(dms_Addr2_List,MATCH(dms_TradingName,dms_TradingName_List)))) ->  | BI26: Address 2 | BQ26: =IF(ISBLANK(INDEX(dms_PAddr2_List,MATCH(dms_TradingName,dms_TradingName_List))),"",(INDEX(dms_PAddr2_List,MATCH(dms_TradingName,dms_TradingName_List)))) -> 
V27: Suburb | AL27: =INDEX(dms_Suburb_List,MATCH(dms_TradingName,dms_TradingName_List)) -> TOWNSVILLE | BI27: Suburb | BQ27: TOWNSVILLE
V28: State | AL28: =INDEX(dms_State_List,MATCH(dms_TradingName,dms_TradingName_List)) -> Qld | AV28: Post code | AX28: 4810 | BI28: State | BQ28: =INDEX(dms_PState_List,MATCH(dms_TradingName,dms_TradingName_List)) -> QLD | CA28: Post code | CC28: 4810
BA30: `
V32: Contact Names
V34: Name | BI34: Name
V35: Phone | BI35: Phone
V36: Email | BI36: Email
Q41: REGULATORY CONTROL PERIODS
Z44: Forthcoming period | AL44: 2005-06 | AU44: =FRCP_y2 -> 2006-07 | BD44: =FRCP_y3 -> 2007-08 | BM44: =FRCP_y4 -> 2008-09 | BV44: =FRCP_y5 -> 2009-10
AL45: =FRCP_y6 -> 2010-11 | AU45: =FRCP_y7 -> 2011-12 | BD45: =FRCP_y8 -> 2012-13 | BM45: =FRCP_y9 -> 2013-14 | BV45: =FRCP_y10 -> 2014-15
AL46: =FRCP_y11 -> 2015-16 | AU46: =FRCP_y12 -> 2016-17 | BD46: =FRCP_y13 -> 2017-18 | BM46: =FRCP_y14 -> 2018-19 | BV46: =FRCP_y15 -> 2019-20
X48: RESETS | Z48: Current period | AL48: =CRCP_y1 -> 2000-01 | AU48: =CRCP_y2 -> 2001-02 | BD48: =CRCP_y3 -> 2002-03 | BM48: =CRCP_y4 -> 2003-04 | BV48: =CRCP_y5 -> 2004-05
AL49: =CRCP_y6 -> 2005-06 | AU49: =CRCP_y7 -> 2006-07 | BD49: =CRCP_y8 -> 2007-08 | BM49: =CRCP_y9 -> 2008-09 | BV49: =CRCP_y10 -> 2009-10
AL50: =CRCP_y11 -> 2010-11 | AU50: =CRCP_y12 -> 2011-12 | BD50: =CRCP_y13 -> 2012-13 | BM50: =CRCP_y14 -> 2013-14 | BV50: =CRCP_y15 -> 2014-15
Z52: Previous period | AL52: =PRCP_y1 -> 1995--04 | AU52: =PRCP_y2 -> 1996--03 | BD52: =PRCP_y3 -> 1997--02 | BM52: =PRCP_y4 -> 1998--01 | BV52: =PRCP_y5 -> 1999-00
AL53: =PRCP_y6 -> 2000-01 | AU53: =PRCP_y7 -> 2001-02 | BD53: =PRCP_y8 -> 2002-03 | BM53: =PRCP_y9 -> 2003-04 | BV53: =PRCP_y10 -> 2004-05
AL54: =PRCP_y11 -> 2005-06 | AU54: =PRCP_y12 -> 2006-07 | BD54: =PRCP_y13 -> 2007-08 | BM54: =PRCP_y14 -> 2008-09 | BV54: =PRCP_y15 -> 2009-10
X56: ANNUAL RINS | Z56: Commencing year | AL56: 2023-24
Z58: Ending year | AL58: 2023-24
Q62: SUBMISSION DETAILS
Z64: RIN type | AL64: Annual Reporting
Z66: Source | AL66: Reporting
X68: THIS FILE | Z68: Data Quality | AL68: Consolidated
Z70: Confidentiality Status | AL70: Public
Z72: Amended RIN Amendment Reason | AL72: .
Z76: Submission Date | AL76: dd/mm/yy
A100: 2005-06 | I100: =TEXT(LEFT(FRCP_y1, 4) + 1, "0000") & "-" & TEXT(RIGHT(FRCP_y1, 2) + 1, "00") -> 2006-07 | O100: =TEXT(LEFT(FRCP_y1, 4) - 5, "0000") & "-" & TEXT(RIGHT(FRCP_y1, 2) - 5, "00") -> 2000-01 | U100: =TEXT(LEFT(FRCP_y1, 4) - 10, "0000") & "-" & TEXT(RIGHT(FRCP_y1, 2) - 10, "00") -> 1995--04 | AA100: ANNUAL REPORTING
A101: 2006-07 | I101: =TEXT(LEFT(FRCP_y2, 4) + 1, "0000") & "-" & TEXT(RIGHT(FRCP_y2, 2) + 1, "00") -> 2007-08 | O101: =TEXT(LEFT(FRCP_y1, 4) - 4, "0000") & "-" & TEXT(RIGHT(FRCP_y1, 2) - 4, "00") -> 2001-02 | U101: =TEXT(LEFT(FRCP_y1, 4) - 9, "0000") & "-" & TEXT(RIGHT(FRCP_y1, 2) - 9, "00") -> 1996--03 | AA101: yes
A102: 2007-08 | I102: =TEXT(LEFT(FRCP_y3, 4) + 1, "0000") & "-" & TEXT(RIGHT(FRCP_y3, 2) + 1, "00") -> 2008-09 | O102: =TEXT(LEFT(FRCP_y1, 4) - 3, "0000") & "-" & TEXT(RIGHT(FRCP_y1, 2) - 3, "00") -> 2002-03 | U102: =TEXT(LEFT(FRCP_y1, 4) - 8, "0000") & "-" & TEXT(RIGHT(FRCP_y1, 2) - 8, "00") -> 1997--02 | AA102: =IF(dms_SingleYearModel="yes",(CONCATENATE(IF(LEN(CRY)=4,"1-Jan-","1-Jul-"),LEFT(CRY,4))),(CONCATENATE(IF(LEN(PRCP_y4)=4,"1-Jan-","1-Jul-"),LEFT(PRCP_y4,4)))) -> 1-Jul-2023
A103: 2008-09 | I103: =TEXT(LEFT(FRCP_y4, 4) + 1, "0000") & "-" & TEXT(RIGHT(FRCP_y4, 2) + 1, "00") -> 2009-10 | O103: =TEXT(LEFT(FRCP_y1, 4) - 2, "0000") & "-" & TEXT(RIGHT(FRCP_y1, 2) - 2, "00") -> 2003-04 | U103: =TEXT(LEFT(FRCP_y1, 4) - 7, "0000") & "-" & TEXT(RIGHT(FRCP_y1, 2) - 7, "00") -> 1998--01
A104: 2009-10 | I104: =TEXT(LEFT(FRCP_y5, 4) + 1, "0000") & "-" & TEXT(RIGHT(FRCP_y5, 2) + 1, "00") -> 2010-11 | O104: =TEXT(LEFT(FRCP_y1, 4) - 1, "0000") & "-" & TEXT(RIGHT(FRCP_y1, 2) - 1, "00") -> 2004-05 | U104: =TEXT(LEFT(FRCP_y1, 4) - 6, "0000") & "-" & TEXT(RIGHT(FRCP_y1, 2) - 6, "00") -> 1999-00
A105: 2010-11 | I105: =TEXT(LEFT(FRCP_y6, 4) + 1, "0000") & "-" & TEXT(RIGHT(FRCP_y6, 2) + 1, "00") -> 2011-12 | O105: =TEXT(LEFT(FRCP_y1, 4) - 0, "0000") & "-" & TEXT(RIGHT(FRCP_y1, 2) - 0, "00") -> 2005-06 | U105: =TEXT(LEFT(FRCP_y1, 4) - 5, "0000") & "-" & TEXT(RIGHT(FRCP_y1, 2) - 5, "00") -> 2000-01
A106: 2011-12 | I106: =TEXT(LEFT(FRCP_y7, 4) + 1, "0000") & "-" & TEXT(RIGHT(FRCP_y7, 2) + 1, "00") -> 2012-13 | O106: =TEXT(LEFT(FRCP_y1, 4) + 1, "0000") & "-" & TEXT(RIGHT(FRCP_y1, 2) + 1, "00") -> 2006-07 | U106: =TEXT(LEFT(FRCP_y1, 4) - 4, "0000") & "-" & TEXT(RIGHT(FRCP_y1, 2) - 4, "00") -> 2001-02
A107: 2012-13 | I107: =TEXT(LEFT(FRCP_y8, 4) + 1, "0000") & "-" & TEXT(RIGHT(FRCP_y8, 2) + 1, "00") -> 2013-14 | O107: =TEXT(LEFT(FRCP_y1, 4) + 2, "0000") & "-" & TEXT(RIGHT(FRCP_y1, 2) + 2, "00") -> 2007-08 | U107: =TEXT(LEFT(FRCP_y1, 4) - 3, "0000") & "-" & TEXT(RIGHT(FRCP_y1, 2) - 3, "00") -> 2002-03
A108: 2013-14 | I108: =TEXT(LEFT(FRCP_y9, 4) + 1, "0000") & "-" & TEXT(RIGHT(FRCP_y9, 2) + 1, "00") -> 2014-15 | O108: =TEXT(LEFT(FRCP_y1, 4) + 3, "0000") & "-" & TEXT(RIGHT(FRCP_y1, 2) + 3, "00") -> 2008-09 | U108: =TEXT(LEFT(FRCP_y1, 4) - 2, "0000") & "-" & TEXT(RIGHT(FRCP_y1, 2) - 2, "00") -> 2003-04
A109: 2014-15 | I109: =TEXT(LEFT(FRCP_y10, 4) + 1, "0000") & "-" & TEXT(RIGHT(FRCP_y10, 2) + 1, "00") -> 2015-16 | O109: =TEXT(LEFT(FRCP_y1, 4) + 4, "0000") & "-" & TEXT(RIGHT(FRCP_y1, 2) + 4, "00") -> 2009-10 | U109: =TEXT(LEFT(FRCP_y1, 4) - 1, "0000") & "-" & TEXT(RIGHT(FRCP_y1, 2) - 1, "00") -> 2004-05
A110: 2015-16 | I110: =TEXT(LEFT(FRCP_y11,4)+1,"0000")&"-"&TEXT(RIGHT(FRCP_y11,2)+1,"00") -> 2016-17 | O110: =TEXT(LEFT(FRCP_y1, 4) + 5, "0000") & "-" & TEXT(RIGHT(FRCP_y1, 2) + 5, "00") -> 2010-11 | U110: =TEXT(LEFT(FRCP_y1, 4) - 0, "0000") & "-" & TEXT(RIGHT(FRCP_y1, 2) - 0, "00") -> 2005-06
A111: 2016-17 | I111: =TEXT(LEFT(FRCP_y12, 4) + 1, "0000") & "-" & TEXT(RIGHT(FRCP_y12, 2) + 1, "00") -> 2017-18 | O111: =TEXT(LEFT(FRCP_y1, 4) + 6, "0000") & "-" & TEXT(RIGHT(FRCP_y1, 2) + 6, "00") -> 2011-12 | U111: =TEXT(LEFT(FRCP_y1, 4) + 1, "0000") & "-" & TEXT(RIGHT(FRCP_y1, 2) + 1, "00") -> 2006-07
A112: 2017-18 | I112: =TEXT(LEFT(FRCP_y13, 4) + 1, "0000") & "-" & TEXT(RIGHT(FRCP_y13, 2) + 1, "00") -> 2018-19 | O112: =TEXT(LEFT(FRCP_y1, 4) + 7, "0000") & "-" & TEXT(RIGHT(FRCP_y1, 2) + 7, "00") -> 2012-13 | U112: =TEXT(LEFT(FRCP_y1, 4) + 2, "0000") & "-" & TEXT(RIGHT(FRCP_y1, 2) + 2, "00") -> 2007-08
A113: 2018-19 | I113: =TEXT(LEFT(FRCP_y14, 4) + 1, "0000") & "-" & TEXT(RIGHT(FRCP_y14, 2) + 1, "00") -> 2019-20 | O113: =TEXT(LEFT(FRCP_y1, 4) + 8, "0000") & "-" & TEXT(RIGHT(FRCP_y1, 2) + 8, "00") -> 2013-14 | U113: =TEXT(LEFT(FRCP_y1, 4) + 3, "0000") & "-" & TEXT(RIGHT(FRCP_y1, 2) + 3, "00") -> 2008-09
A114: 2019-20 | I114: =TEXT(LEFT(FRCP_y15, 4) + 1, "0000") & "-" & TEXT(RIGHT(FRCP_y15, 2) + 1, "00") -> 2020-21 | O114: =TEXT(LEFT(FRCP_y1, 4) + 9, "0000") & "-" & TEXT(RIGHT(FRCP_y1, 2) + 9, "00") -> 2014-15 | U114: =TEXT(LEFT(FRCP_y1, 4) + 4, "0000") & "-" & TEXT(RIGHT(FRCP_y1, 2) + 4, "00") -> 2009-10
A115: 2020-21 | O115: =TEXT(LEFT(FRCP_y1, 4) + 10, "0000") & "-" & TEXT(RIGHT(FRCP_y1, 2) + 10, "00") -> 2015-16 | U115: =TEXT(LEFT(FRCP_y1, 4) + 5, "0000") & "-" & TEXT(RIGHT(FRCP_y1, 2) + 5, "00") -> 2010-11
A116: 2021-22
A117: 2023-24
A118: 2023-24
A119: 2024-25
A120: 2025-26
A121: 2026-27
A122: 2027-28
A123: 2028-29
A124: 2029-30
A125: 2030-31
A126: 2031-32
A127: 2032-33
A128: 2033-34
A129: 2034-35
A130: 2035-36

Sheet 6.2 STPIS Reliability
B1: =SheetHeader -> ANNUAL REPORTING
B2: =INDEX(dms_TradingNameFull_List,MATCH(dms_TradingName,dms_TradingName_List)) -> Ergon Energy
B3: =CONCATENATE("Annual Reporting RIN Response ", CRY) -> Annual Reporting RIN Response 2023-24
B4: 6.2 RELIABILITY AND CUSTOMER SERVICE PERFORMANCE
B5: TEMPLATE DATE - MAY 2024
B8: Did the MAIFI parameter of the STPIS apply during the period? NB:This flag is set from the response on worksheet 3.6.8 Network feeders | D8: =dms_MAIFI_Flag -> 
B11: 6.2.1 - UNPLANNED MINUTES OFF SUPPLY (SAIDI)
D12: =CRY -> 2023-24
B13: Total sustained minutes off supply | C13: =INDEX(dms_FeederName_1,MATCH(dms_TradingName,dms_TradingName_List)) -> CBD
C14: =INDEX(dms_FeederName_2,MATCH(dms_TradingName,dms_TradingName_List)) -> Urban | D14: 553.3623113
C15: =INDEX(dms_FeederName_3,MATCH(dms_TradingName,dms_TradingName_List)) -> Short rural | D15: 881.5446954
C16: =INDEX(dms_FeederName_4,MATCH(dms_TradingName,dms_TradingName_List)) -> Long rural | D16: 1164.401729
C17: =IF((INDEX(dms_FeederName_5,MATCH(dms_TradingName,dms_TradingName_List))=0),"",(INDEX(dms_FeederName_5,MATCH(dms_TradingName,dms_TradingName_List)))) -> 
C18: Whole Network | D18: 802.1688069
B19: Total of excluded events* *see 3.3 of STPIS | C19: =INDEX(dms_FeederName_1,MATCH(dms_TradingName,dms_TradingName_List)) -> CBD
C20: =INDEX(dms_FeederName_2,MATCH(dms_TradingName,dms_TradingName_List)) -> Urban | D20: 422.738634
C21: =INDEX(dms_FeederName_3,MATCH(dms_TradingName,dms_TradingName_List)) -> Short rural | D21: 603.300609
C22: =INDEX(dms_FeederName_4,MATCH(dms_TradingName,dms_TradingName_List)) -> Long rural | D22: 350.5320772
C23: =IF((INDEX(dms_FeederName_5,MATCH(dms_TradingName,dms_TradingName_List))=0),"",(INDEX(dms_FeederName_5,MATCH(dms_TradingName,dms_TradingName_List)))) -> 
C24: Whole Network | D24: 515.6458904
B25: Total sustained minutes off supply after removing excluded events | C25: =INDEX(dms_FeederName_1,MATCH(dms_TradingName,dms_TradingName_List)) -> CBD
C26: =INDEX(dms_FeederName_2,MATCH(dms_TradingName,dms_TradingName_List)) -> Urban | D26: 130.6236773
C27: =INDEX(dms_FeederName_3,MATCH(dms_TradingName,dms_TradingName_List)) -> Short rural | D27: 278.2440864
C28: =INDEX(dms_FeederName_4,MATCH(dms_TradingName,dms_TradingName_List)) -> Long rural | D28: 813.8696514
C29: =IF((INDEX(dms_FeederName_5,MATCH(dms_TradingName,dms_TradingName_List))=0),"",(INDEX(dms_FeederName_5,MATCH(dms_TradingName,dms_TradingName_List)))) -> 
C30: Whole Network | D30: 286.5229164
B33: 6.2.2 - UNPLANNED INTERRUPTIONS TO SUPPLY (SAIFI)
D34: =CRY -> 2023-24
B35: Total sustained interruptions | C35: =INDEX(dms_FeederName_1,MATCH(dms_TradingName,dms_TradingName_List)) -> CBD
C36: =INDEX(dms_FeederName_2,MATCH(dms_TradingName,dms_TradingName_List)) -> Urban | D36: 1.828715233
C37: =INDEX(dms_FeederName_3,MATCH(dms_TradingName,dms_TradingName_List)) -> Short rural | D37: 2.897230634
C38: =INDEX(dms_FeederName_4,MATCH(dms_TradingName,dms_TradingName_List)) -> Long rural | D38: 5.103325831
C39: =IF((INDEX(dms_FeederName_5,MATCH(dms_TradingName,dms_TradingName_List))=0),"",(INDEX(dms_FeederName_5,MATCH(dms_TradingName,dms_TradingName_List)))) -> 
C40: Whole Network | D40: 2.777202198
B41: Total of excluded events* *see 3.3 of STPIS | C41: =INDEX(dms_FeederName_1,MATCH(dms_TradingName,dms_TradingName_List)) -> CBD
C42: =INDEX(dms_FeederName_2,MATCH(dms_TradingName,dms_TradingName_List)) -> Urban | D42: 0.5830956222
C43: =INDEX(dms_FeederName_3,MATCH(dms_TradingName,dms_TradingName_List)) -> Short rural | D43: 0.6627811505
C44: =INDEX(dms_FeederName_4,MATCH(dms_TradingName,dms_TradingName_List)) -> Long rural | D44: 0.9239184796
C45: =IF((INDEX(dms_FeederName_5,MATCH(dms_TradingName,dms_TradingName_List))=0),"",(INDEX(dms_FeederName_5,MATCH(dms_TradingName,dms_TradingName_List)))) -> 
C46: Whole Network | D46: 0.6642352279
B47: Total sustained interruptions after removing excluded events | C47: =INDEX(dms_FeederName_1,MATCH(dms_TradingName,dms_TradingName_List)) -> CBD
C48: =INDEX(dms_FeederName_2,MATCH(dms_TradingName,dms_TradingName_List)) -> Urban | D48: 1.245619611
C49: =INDEX(dms_FeederName_3,MATCH(dms_TradingName,dms_TradingName_List)) -> Short rural | D49: 2.234449483
C50: =INDEX(dms_FeederName_4,MATCH(dms_TradingName,dms_TradingName_List)) -> Long rural | D50: 4.179407352
C51: =IF((INDEX(dms_FeederName_5,MATCH(dms_TradingName,dms_TradingName_List))=0),"",(INDEX(dms_FeederName_5,MATCH(dms_TradingName,dms_TradingName_List)))) -> 
C52: Whole Network | D52: 2.11296697
B55: 6.2.3 - UNPLANNED MOMENTARY INTERRUPTIONS TO SUPPLY (MAIFI)
D56: =CRY -> 2023-24
B57: Total momentary interruptions | C57: =INDEX(dms_FeederName_1,MATCH(dms_TradingName,dms_TradingName_List)) -> CBD
C58: =INDEX(dms_FeederName_2,MATCH(dms_TradingName,dms_TradingName_List)) -> Urban
C59: =INDEX(dms_FeederName_3,MATCH(dms_TradingName,dms_TradingName_List)) -> Short rural
C60: =INDEX(dms_FeederName_4,MATCH(dms_TradingName,dms_TradingName_List)) -> Long rural
C61: =IF((INDEX(dms_FeederName_5,MATCH(dms_TradingName,dms_TradingName_List))=0),"",(INDEX(dms_FeederName_5,MATCH(dms_TradingName,dms_TradingName_List)))) -> 
C62: Whole Network
B63: Total of excluded events* *see 3.3 of STPIS | C63: =INDEX(dms_FeederName_1,MATCH(dms_TradingName,dms_TradingName_List)) -> CBD
C64: =INDEX(dms_FeederName_2,MATCH(dms_TradingName,dms_TradingName_List)) -> Urban
C65: =INDEX(dms_FeederName_3,MATCH(dms_TradingName,dms_TradingName_List)) -> Short rural
C66: =INDEX(dms_FeederName_4,MATCH(dms_TradingName,dms_TradingName_List)) -> Long rural
C67: =IF((INDEX(dms_FeederName_5,MATCH(dms_TradingName,dms_TradingName_List))=0),"",(INDEX(dms_FeederName_5,MATCH(dms_TradingName,dms_TradingName_List)))) -> 
C68: Whole Network
B69: Total momentary interruptions after removing excluded events | C69: =INDEX(dms_FeederName_1,MATCH(dms_TradingName,dms_TradingName_List)) -> CBD
C70: =INDEX(dms_FeederName_2,MATCH(dms_TradingName,dms_TradingName_List)) -> Urban
C71: =INDEX(dms_FeederName_3,MATCH(dms_TradingName,dms_TradingName_List)) -> Short rural
C72: =INDEX(dms_FeederName_4,MATCH(dms_TradingName,dms_TradingName_List)) -> Long rural
C73: =IF((INDEX(dms_FeederName_5,MATCH(dms_TradingName,dms_TradingName_List))=0),"",(INDEX(dms_FeederName_5,MATCH(dms_TradingName,dms_TradingName_List)))) -> 
C74: Whole Network
B77: 6.2.4 - DISTRIBUTION CUSTOMER NUMBERS
D78: =CRY -> 2023-24
B79: Customer numbers at the start of the period | C79: =INDEX(dms_FeederName_1,MATCH(dms_TradingName,dms_TradingName_List)) -> CBD
C80: =INDEX(dms_FeederName_2,MATCH(dms_TradingName,dms_TradingName_List)) -> Urban | D80: 249140
C81: =INDEX(dms_FeederName_3,MATCH(dms_TradingName,dms_TradingName_List)) -> Short rural | D81: 412984
C82: =INDEX(dms_FeederName_4,MATCH(dms_TradingName,dms_TradingName_List)) -> Long rural | D82: 80132
C83: =IF((INDEX(dms_FeederName_5,MATCH(dms_TradingName,dms_TradingName_List))=0),"",(INDEX(dms_FeederName_5,MATCH(dms_TradingName,dms_TradingName_List)))) -> 
C84: Whole Network | D84: 742256
B85: Customer numbers at the end of the period | C85: =INDEX(dms_FeederName_1,MATCH(dms_TradingName,dms_TradingName_List)) -> CBD
C86: =INDEX(dms_FeederName_2,MATCH(dms_TradingName,dms_TradingName_List)) -> Urban | D86: 247962
C87: =INDEX(dms_FeederName_3,MATCH(dms_TradingName,dms_TradingName_List)) -> Short rural | D87: 415220
C88: =INDEX(dms_FeederName_4,MATCH(dms_TradingName,dms_TradingName_List)) -> Long rural | D88: 79827
C89: =IF((INDEX(dms_FeederName_5,MATCH(dms_TradingName,dms_TradingName_List))=0),"",(INDEX(dms_FeederName_5,MATCH(dms_TradingName,dms_TradingName_List)))) -> 
C90: Whole Network | D90: 743009
B91: Average customer numbers | C91: =INDEX(dms_FeederName_1,MATCH(dms_TradingName,dms_TradingName_List)) -> CBD | D91: =IFERROR(ROUND(AVERAGE(D79,D85),0),"") -> 
C92: =INDEX(dms_FeederName_2,MATCH(dms_TradingName,dms_TradingName_List)) -> Urban | D92: =IFERROR(ROUND(AVERAGE(D80,D86),0),"") -> 248551
C93: =INDEX(dms_FeederName_3,MATCH(dms_TradingName,dms_TradingName_List)) -> Short rural | D93: =IFERROR(ROUND(AVERAGE(D81,D87),0),"") -> 414102
C94: =INDEX(dms_FeederName_4,MATCH(dms_TradingName,dms_TradingName_List)) -> Long rural | D94: =IFERROR(ROUND(AVERAGE(D82,D88),0),"") -> 79980
C95: =IF((INDEX(dms_FeederName_5,MATCH(dms_TradingName,dms_TradingName_List))=0),"",(INDEX(dms_FeederName_5,MATCH(dms_TradingName,dms_TradingName_List)))) -> 
C96: Whole Network | D96: =IFERROR(ROUND(AVERAGE(D84,D90),0),"") -> 742633
